Cogmind - Beta 17 @@@ ROGUE MODE // 2026.07.09 @ 20:46:35 Player: the Result: Destroyed by FX-31F(R) with Subdweller Machine Gun Performance ------------- Evolutions (0) 0 Regions Visited (2) 400 Robots Destroyed (29) 145 Value Destroyed (599) 599 Prototype IDs (1) 20 Alien Tech Used (0) 0 Bonus (0) 0 TOTAL SCORE: 1164 Bonus ------- None Cogmind --------- Core Integrity 0/250 Matter 13/300 Energy 196/200 System Corruption 8% Temperature Cool (0) Movement Rolling (120) Ox1 Location -10/Subcaves Parts ------- > --- POWER (1) -------- Subdweller Power Source (fused) > --- PROPULSION (2) --- Subdweller Monowheel > --- UTILITY (2) ------ Large Storage Unit Seismic Detector > --- WEAPON (2) ------- Heavy Hammer Makeshift Sword (fused) > --- INVENTORY (15) --- Makeshift Power Source Disposable Heat Sink Advanced Targeting Computer Reflective Plating Subdweller Laser Subdweller Laser Battle Rifle Battle Rifle Subdweller Machine Gun Heavy Battle Rifle Battle Cannon Grenade Launcher H3-MLN's Flail Botcube Peak State ------------ > --- POWER ------------ Subdweller Power Source > --- PROPULSION ------- Light Treads Subdweller Monowheel > --- UTILITY ---------- Large Storage Unit Seismic Detector > --- WEAPON ----------- H3-MLN's Flail Makeshift Sword > --- INVENTORY -------- Makeshift Power Source Disposable Heat Sink Advanced Targeting Computer Reflective Plating Subdweller Laser Subdweller Laser Battle Rifle Battle Rifle Subdweller Machine Gun Heavy Battle Rifle Battle Cannon Grenade Launcher Heavy Hammer Botcube [Rating: 19] Favorites ----------- Power Light Ion Engine Engine Light Ion Engine Propulsion Light Treads Treads Light Treads Leg Improved Aluminum Leg Wheel Subdweller Monowheel Utility Seismic Detector Device Seismic Detector Storage Large Storage Unit Protection Scrap Shield Weapon Subdweller Beam Cannon Energy Cannon Subdweller Beam Cannon Ballistic Gun Light Assault Rifle Launcher Grenade Launcher Special Weapon Mining Laser Impact Weapon Heavy Hammer Slashing Weapon Makeshift Sword Build | -11 -10 -10 ------- Run | Yrd Mat Sub Slots Evolved . | . . . Power . | . . . Propulsion . | . . . Utility . | . . . Weapon . | . . . Parts Attached 34 | 7 5 22 Power 4 | 1 . 3 Engine 4 | 1 . 3 Core . | . . . Reactor . | . . . Propulsion 8 | 2 . 6 Treads 4 | 2 . 2 Leg 1 | . . 1 Wheel 3 | . . 3 Hover . | . . . Flight . | . . . Utility 9 | 2 1 6 Device 3 | 1 . 2 Storage 2 | 1 1 . Processor . | . . . Hackware . | . . . Protection 4 | . . 4 Artifact . | . . . Weapon 13 | 2 4 7 Energy Gun . | . . . Energy Cannon 4 | . . 4 Ballistic Gun 4 | 2 2 . Ballistic Cannon . | . . . Launcher 1 | . 1 . Special Weapon 1 | . 1 . Impact Weapon 2 | . . 2 Slashing Weapon 1 | . . 1 Piercing Weapon . | . . . Special Melee Weapon . | . . . Unidentified Prototypes 1 | . 1 . Parts Lost 9 | . 1 8 Power 1 | . . 1 Propulsion 3 | . . 3 Utility 2 | . . 2 Weapon 3 | . 1 2 Highest Loss Streak 5 | . 1 5 To Critical Strikes 1 | . . 1 Average Backups 7 | 2 10 6 Power . | . . . Propulsion . | . . . Utility 2 | 1 6 1 Weapon 3 | . 3 3 Tool/Special . | . . . Unused Backups 27 | 1 4 22 Power 2 | . . 2 Propulsion . | . . . Utility 7 | 1 3 3 Weapon 17 | . 1 16 Tool/Special 1 | . . 1 Average Slot Usage (%) 92 | . 100 90 Engine 13 | . 14 13 Treads 23 | . 28 22 Wheel 2 | . . 3 Device 8 | . 14 7 Storage 5 | . 14 4 Protection 7 | . . 9 Energy Cannon 13 | . . 15 Ballistic Gun 4 | . 27 . Impact Weapon 3 | . . 4 Slashing Weapon 6 | . . 7 Peak Build Rating 19 | 7 9 19 Average Rating 12 | 6 7 13 On Entrance 5 | . 7 9 Avg Prop Armor Cover (%) 13 | . . 13 Naked Turns . | . . . Heaviest Build 35 | 11 28 35 Greatest Support 40 | 40 40 40 Greatest Overweight (x) 1 | 1 . 1 Average Overweight (x) . | . . . Largest Inventory Capacity 15 | 8 15 15 Average Capacity 8 | 7 14 7 Most Carried 15 | 4 15 15 Average Carried 7 | 2 10 6 Final Capacity 15 | 8 15 15 Final Carried 15 | 3 15 14 Class Distribution -------------------- 95% | Mutant 4% | Subdweller-Mutant Dominant Class ---------------- Mutant | -10/Materials Mutant | -10/Subcaves Resources | -11 -10 -10 ----------- Run | Yrd Mat Sub Matter Collected 650 | 289 81 280 Remotely . | . . . Salvage Created 973 | 120 226 627 Parts 64 | 11 15 38 Haulers Intercepted 2 | . 2 . Recyclers Shooed 1 | . 1 . Parts Field Recycled . | . . . Retrieved Matter . | . . . Parts Self-Destructed 11 | . . 11 Prevented . | . . . Parts Restored . | . . . Kills | -11 -10 -10 ------- Run | Yrd Mat Sub Combat Hostiles Destroyed 18 | . 3 15 Melee 3 | . . 3 Cannons 8 | . . 8 AOE 7 | . 3 4 Classes Destroyed 9 | 1 5 3 Worker 2 | . 2 . Tunneler 5 | 5 . . Hauler 2 | . 2 . Operator 1 | . 1 . Watcher 2 | . 2 . Swarmer 7 | . 3 4 Subdweller 10 | . . 10 Scientist 1 | . . 1 Botcube 1 | . . 1 Best Kill Streak 6 | 5 4 6 Combat Bots Only 6 | . 3 6 Max Kills in Single Turn 3 | 1 3 3 Gunslinging . | . . . Exploded 3 | . 3 3 Melee 1 | . . 1 Uniques/NPCs Destroyed . | . . . Combat | -11 -10 -10 -------- Run | Yrd Mat Sub Hostile Shots Fired 116 | . 4 112 Missed 29 | . 4 25 Hits 87 | . . 87 Melee 8 | . . 8 Projectile 79 | . . 79 Critical Strikes 6 | . . 6 Damage Taken 1924 | . 25 1899 Core 262 | . . 262 Absorbed by Shields . | . . . Core Remaining (%) 100 | 100 . . Volleys Fired 98 | 13 27 58 Largest 2 | 2 2 2 Hottest 148 | 40 100 148 Shots Fired 174 | 26 51 97 Gun 73 | 26 47 . Cannon 95 | . . 95 Launcher 3 | . 1 2 Special 3 | . 3 . Kinetic 73 | 26 47 . Thermal 98 | . 3 95 Explosive 3 | . 1 2 Electromagnetic . | . . . Robot Hit Streak 22 | 5 4 22 Robot Miss Streak 4 | 2 2 4 Penetration Max . | . . . Secondary Targets . | . . . Shots Hit Robots 156 | 18 30 108 Core Hits 56 | 8 19 29 Critical Kills . | . . . Critical Parts Destroyed 1 | . . 1 Critical Strikes 5 | . . 5 Smash 1 | . . 1 Sever 4 | . . 4 Melee Attacks 93 | . . 93 Impact 2 | . . 2 Slashing 86 | . . 86 Piercing . | . . . Sneak Attacks 3 | . . 3 Combat Hostiles 1 | . . 1 Follow-up Attacks 4 | . . 4 Damage Inflicted 3838 | 159 543 3136 Guns 397 | 157 240 . Cannons 1384 | . . 1384 Explosions 464 | . 300 164 Melee 1588 | . . 1588 Ramming 5 | 2 3 . Kinetic 397 | 157 240 . Thermal 1384 | . . 1384 Explosive 256 | . 92 164 Electromagnetic 208 | . 208 . Impact 86 | . . 86 Slashing 1502 | . . 1502 Piercing . | . . . Highest Corruption 8 | . . 8 Average Corruption 7 | . . 7 Corruption Purged . | . . . Corruption Blocked . | . . . Effects 48 | . . 48 Message Errors 8 | . . 8 Matter Fused 15 | . . 15 Heat Flow Errors 5 | . . 5 Energy Discharges 7 | . . 7 Parts Rejected 1 | . . 1 Parts Fused 2 | . . 2 Data Loss (minor) 4 | . . 4 Data Loss (major) 5 | . . 5 Alerts 1 | . . 1 Overload Shots . | . . . Overflow Damage 216 | . . 216 Projectiles . | . . . Explosions 25 | . . 25 Melee 191 | . . 191 Knockbacks 1 | . . 1 Impact 1 | . . 1 Kinetic . | . . . Secondary . | . . . Self-Inflicted Damage 40 | . . 40 Shots 1 | . . 1 Rammed 3 | 2 1 . Targets Rammed 3 | 2 1 . Kicked . | . . . Crushed . | . . . Highest Temperature 228 | . 60 228 Average Temperature 62 | . 30 65 Received Heat Transfer 141 | . . 141 Siege Activations . | . . . Martial Activations . | . . . Shielding Activations . | . . . Robots Disrupted . | . . . Combat Hostiles . | . . . Robots Corrupted 2 | . 1 1 Combat Hostiles . | . . . Parts Fried 2 | . 1 1 Impact Corruptions 3 | . . 3 Robots Melted . | . . . Combat Hostiles . | . . . Parts Melted 3 | . . 3 Heat Transferred 2348 | . . 2348 Parts Sabotaged . | . . . Parts Stolen . | . . . Parts Stripped . | . . . Power Chain Reactions 1 | . 1 . Alert | -11 -10 -10 ------- Run | Yrd Mat Sub Maximum Alert Level . | . . . Low Security (%) 100 | 100 100 . Level 1 . | . . . Level 2 . | . . . Level 3 . | . . . Level 4 . | . . . Level 5 . | . . . High Security . | . . . Max Security . | . . . Peak Influence 79 | 15 79 . Initial . | . . . Average 12 | 1 14 . Influence Increases 495 | 25 210 260 Destroy 0b10 Robot/C 140 | . 60 80 Destroy 0b10 Robot/NC 60 | 25 35 . Destroy Leader 18 | . 18 . Successful Hack 29 | . 29 . Disable Machine 60 | . 60 . Destroy Structure 8 | . 8 . Lose Combat Pursuer 180 | . . 180 Influence Decreases 495 | 25 169 301 Entered New Map 21 | . . 21 Time Decay 454 | 25 159 270 Lost Part 20 | . 10 10 Squads Dispatched . | . . . Investigation . | . . . Extermination . | . . . Reinforcement . | . . . Assault . | . . . Garrison . | . . . Intercept . | . . . Searches Triggered . | . . . Construction Impeded . | . . . Haulers Reinforced . | . . . Active Scanning Responses . | . . . Cargo Convoy Interrupts . | . . . Stealth | -11 -10 -10 --------- Run | Yrd Mat Sub Distress Signals . | . . . Communications Jammed . | . . . Distress Signals . | . . . Times Spotted 39 | . 10 29 Peak Tracking Total 6 | . 3 6 Tactical Retreats 11 | . . 11 Traps | -11 -10 -10 ------- Run | Yrd Mat Sub Traps Triggered 1 | . 1 . Indirectly . | . . . Trap Hack Attempts . | . . . Triggered . | . . . Disarmed . | . . . Reprogrammed . | . . . Reused . | . . . Traps Extracted . | . . . Installed . | . . . Triggered . | . . . Machines | -11 -10 -10 ---------- Run | Yrd Mat Sub Machines Disabled 4 | . 4 . Max in Single Turn 2 | . 2 . Machines Repaired . | . . . Machines Dismantled . | . . . Machines Sabotaged . | . . . Overloaded Fab Kills . | . . . Hacking | -11 -10 -10 --------- Run | Yrd Mat Sub Machines Accessed 5 | . 4 1 Terminals 4 | . 4 . Fabricators . | . . . Repair Stations . | . . . Recycling Units . | . . . Scanalyzers . | . . . Garrison Access . | . . . Total Hacks 11 | . 8 3 Successful 9 | . 6 3 Failed 2 | . 2 . Catastrophic . | . . . Database Lockouts . | . . . Manual 8 | . 8 . Terminals 8 | . 8 . Fabricators . | . . . Repair Stations . | . . . Recycling Units . | . . . Scanalyzers . | . . . Garrison Access . | . . . Terminal Hacks 3 | . . 3 Record 3 | . . 3 Fabricator Hacks . | . . . Repair Station Hacks . | . . . Recycling Unit Hacks . | . . . Scanalyzer . | . . . Garrison Access Hacks . | . . . Unauthorized Hacks 6 | . 6 . Terminals 6 | . 6 . Botnet 1 | . 1 . Operators 1 | . 1 . Skim 4 | . 4 . Fabricators . | . . . Repair Stations . | . . . Recycling Units . | . . . Scanalyzers . | . . . Garrison Access . | . . . Data Cores Recovered 1 | . 1 . Used . | . . . Hacking Detections 2 | . 2 . Full Trace Events . | . . . Feedback Events . | . . . Feedback Blocked . | . . . Robot Schematics Acquired . | . . . Robots Built . | . . . Authchips . | . . . Time . | . . . Total Robot Build Rating . | . . . Part Schematics Acquired . | . . . Parts Built . | . . . Authchips . | . . . Time . | . . . Total Part Build Rating . | . . . Part Studies Acquired . | . . . Parts Repaired . | . . . Time . | . . . Parts Recycled . | . . . Recycled Matter . | . . . Retrieved Matter . | . . . Retrieved Components . | . . . Parts Scanalyzed . | . . . Part Schematics Acquired . | . . . Parts Damaged . | . . . Bothacking | -11 -10 -10 ------------ Run | Yrd Mat Sub Used RIF Installer . | . . . Robots Hacked . | . . . Non-combat . | . . . Combat . | . . . Robot Hacks Applied . | . . . Relay Couplers Released . | . . . Fabnet Peak Effective % . | . . . Robots Rewired . | . . . Allies Hacked . | . . . Hacks Repelled . | . . . Allies | -11 -10 -10 -------- Run | Yrd Mat Sub Total Allies . | . . . Largest Group . | . . . Highest-Rated Group . | . . . Highest-Rated Ally . | . . . Total Orders . | . . . Ally Attacks . | . . . Total Damage . | . . . Kills . | . . . Allies Corrupted . | . . . Allies Melted . | . . . Intel | -11 -10 -10 ------- Run | Yrd Mat Sub Active Infowar (turns) 4085 | 122 1018 2945 Seismic 4085 | 122 1018 2945 Robot Analysis Total . | . . . Derelict Logs Recovered 1 | . . 1 Drone Launches . | . . . Drone Recoveries . | . . . Exploration | -11 -10 -10 ------------- Run | Yrd Mat Sub Turns Passed 6717 | 171 1018 5528 Spaces Moved 3432 | 61 433 2938 Core 11 | 11 . . Treads 2683 | 50 433 2200 Legs . | . . . Wheels 738 | . . 738 Hover . | . . . Flight . | . . . Fastest Speed 50 | 50 160 110 Average Speed 155 | 141 160 155 Slowest Speed 240 | 160 160 240 Overloaded Moves . | . . . Propulsion Burnouts . | . . . Robots Hopped . | . . . Potential Cave-ins . | . . . Cave-ins Triggered . | . . . Exploration Rate (%) 50 | 3 71 78 Regions Visited 2 Branch Regions 1 Pre-discovered Areas 2 | . . 2 Known Exits Taken . | . . . Unknown Exits Taken 2 | 1 1 . Scrap Searched . | . . . Spaces Dug 18 | . 1 17 Terrain Destroyed 35 | . 8 27 Melee 16 | . . 16 Projectile 7 | . 1 6 AOE 12 | . 7 5 Terrain Rammed . | . . . Walls Destroyed . | . . . Machines Disabled . | . . . Actions | -11 -10 -10 --------- Run | Yrd Mat Sub Total 4554 | 122 710 3722 Wait 777 | 33 217 527 Move 3430 | 60 432 2938 Hop . | . . . Pick Up 49 | 6 16 27 Fast Attach 19 | 5 2 12 Attach 8 | 2 . 6 Detach 2 | . . 2 Swap 27 | . 7 20 Drop 43 | 1 8 34 Fire 98 | 13 27 58 Melee 89 | . . 89 Ram . | . . . Kick . | . . . Crush 3 | 2 1 . Escape Stasis . | . . . Rewire . | . . . Trap . | . . . Miscellaneous 9 | . . 9 Route ------- -11/Scrapyard -10/Materials (discovered 3 exits: [*Mat] / [*Min] / *Sub) -10/Subcaves (discovered 2 exits: [*Mat x2]) History --------- Turn | Location | Event 29 | -11/Scrapyard | Discovered new exit (range 13) 172 | -11/Scrapyard | Entered Materials 301 | -10/Materials | Build established: Mutant 455 | -10/Materials | Discovered new exit (range 5) 847 | -10/Materials | Discovered new exit (range 11) 1177 | -10/Materials | Discovered new exit (range 9) 1190 | -10/Materials | Entered Subcaves 1191 | -10/Subcaves | Approached by a straggling Scientist 1230 | -10/Subcaves | Discovered new exit (range 9) 1418 | -10/Subcaves | Ambushed by Subdwellers from Twisted Machinery 1679 | -10/Subcaves | Shifting Twisted Machinery released Mak. Sword 1686 | -10/Subcaves | Shifting Twisted Machinery released Sub. Power Source 2149 | -10/Subcaves | Curiously followed by a Cobbler waking with a query about "LVR3C" 2851 | -10/Subcaves | A swath of the cavern ceiling suddenly collapsed 4141 | -10/Subcaves | Learned location of Zion (-6) 4141 | -10/Subcaves | Met a Zionite searching for "candidates" 4649 | -10/Subcaves | Visited Clippyterm 4653 | -10/Subcaves | Learned location of Section 7 (-2) 4789 | -10/Subcaves | A swath of the cavern ceiling suddenly collapsed 4957 | -10/Subcaves | Spotted Slash Mode 4958 | -10/Subcaves | Met H3-MLN with WIP Botcube army 4963 | -10/Subcaves | Spotted Gunmaster 4971 | -10/Subcaves | Discovered new exit (range 10) 4999 | -10/Subcaves | Core integrity fell below 50% 5038 | -10/Subcaves | Found H3-MLN's Flail 5040 | -10/Subcaves | Lost 5 parts (1p1n1u2w) 5201 | -10/Subcaves | Attached CPS modules to Gunmaster 5266 | -10/Subcaves | Destroyed Gunmaster 5272 | -10/Subcaves | Found Botcube 6702 | -10/Subcaves | Attached CPS modules to FX-31F(R) 6706 | -10/Subcaves | Core integrity fell below 20% 6718 | -10/Subcaves | Destroyed by FX-31F(R) with Subdweller Machine Gun Last Messages --------------- fused. 06412_ A/1 MU4YDD6VE725F1W995/M%6S1#XFAZCZ 06413_ Dropped Broken Sub. Monowheel. 06463_ System corrupted: Energy discharge (-58). 06509_ System corrupted: Heat flow error (+139). 06534_ System corrupted: IFF burst signal emitted. 06569_ 3 %RIN0XGS23QISADM VHCAQUG